fUST/lending_fUST_20251226
["ID","MTS","AMOUNT","RATE_DAILY","PERIOD"]
[399856981,1766757031708,-1200.0,0.00015467,2]
[399856982,1766757031719,-565.19319324,0.00015468,2]
[399857037,1766757037771,-183.68873449,0.00015382,2]
[399857039,1766757037781,-500.0,0.00015467,2]
[399857042,1766757037792,-389.18540998,0.00015467,2]
[399857044,1766757037802,-963.56928547,0.00015467,2]
[399857046,1766757037812,-318.2789189,0.00015467,2]
[399857048,1766757037821,-963.56928547,0.00015467,2]
[399857050,1766757037831,-963.56928547,0.00015467,2]
[399857052,1766757037841,-963.56928547,0.00015467,2]
[399857054,1766757037851,-963.56928547,0.00015467,2]
[399857055,1766757037861,-963.56928547,0.00015467,2]
[399857057,1766757037871,-963.56928547,0.00015467,2]
[399857059,1766757037880,-963.56928547,0.00015467,2]
[399857061,1766757037891,-963.56928547,0.00015467,2]
[399857063,1766757037900,-963.56928547,0.00015467,2]
[399857065,1766757037910,-963.56928547,0.00015467,2]
[399857067,1766757037920,-963.56928547,0.00015467,2]
[399857069,1766757037930,-963.56928547,0.00015467,2]
[399857072,1766757037944,-963.56928547,0.00015467,2]
[399857074,1766757037955,-963.56928547,0.00015467,2]
[399857076,1766757037964,-95198.17175196,0.00015468,2]
[399857078,1766757037974,-643.0,0.00015468,2]
[399857080,1766757037984,-562.50820008,0.00015471,2]
[399857082,1766757037993,-301.5240398,0.00015502,2]
[399857084,1766757038003,-562.50820008,0.00015505,2]
[399857086,1766757038013,-866.46868908,0.00015536,2]
[399857088,1766757038023,-336.20158792,0.00015538,2]
[399857090,1766757038034,-307203.89843246,0.00015539,2]
[399857093,1766757038047,-2313.90633025,0.00015539,2]
[399857316,1766757042035,788.36537664,7.961e-05,2]
[399857317,1766757042693,788.36537664,9.7e-05,2]
[399857321,1766757043294,788.36537664,0.0001144,2]
[399857322,1766757043944,788.36537664,0.0001318,2]
[399857328,1766757060355,-788.36537664,0.0001492,2]
[399857330,1766757063865,500.0,0.00013273,2]
[399857331,1766757075562,-5000.0,0.00015384,2]
[399857332,1766757076846,0.01,0.00013273,2]
[399857333,1766757076872,499.99,0.00013273,2]
[399857334,1766757080922,500.0,0.00013273,2]
[399857335,1766757081043,500.0,0.00013273,2]
[399857337,1766757082213,500.0,0.00013273,2]
[399857338,1766757082243,500.0,0.00013273,2]
[399857339,1766757082624,500.0,0.00013273,2]
[399857340,1766757082852,500.0,0.00013273,2]
[399857341,1766757082987,500.0,0.00013273,2]
[399857342,1766757083055,500.0,0.00013273,2]
[399857343,1766757083552,500.0,0.00013273,2]
[399857344,1766757108915,-162.099,0.00015228,2]
[399857345,1766757125270,500.0,0.00013273,2]
[399857346,1766757125303,500.0,0.00013273,2]
[399857347,1766757125400,500.0,0.00013273,2]
[399857348,1766757136619,500.0,0.00013273,2]
[399857349,1766757138446,500.0,0.00013273,2]
[399857350,1766757138503,500.0,0.00013273,2]
[399857351,1766757138675,500.0,0.00013273,2]
[399857352,1766757181783,352.86844767,7.614e-05,2]
[399857353,1766757182414,352.86844767,0.00010078,2]
[399857354,1766757183916,352.86844767,0.00012541,2]
[399857355,1766757184450,500.0,0.00013273,2]
[399857356,1766757184654,500.0,0.00013699,2]
[399857357,1766757194061,-352.86844767,0.00015005,2]
[399857358,1766757355300,-1000.0,0.00015,2]
[399857359,1766757361391,8000.01,0.00014527,2]
[399857360,1766757361425,1496.5762117,0.00014527,2]
[399857361,1766757363164,158.23684402,0.00013699,2]
[399857362,1766757364716,1000.0,0.000145,2]
[399857363,1766757378625,156.0,0.00014,2]
[399857364,1766757425583,500.0,0.00013273,2]
[399857365,1766757473642,315.0,0.00030137,120]
[399857366,1766757604515,632.0,0.00014799,2]
[399857367,1766757608332,500.0,0.00013273,2]
[399857368,1766757608446,500.0,0.00013273,2]
[399857369,1766757667463,500.0,0.00013273,2]
[399857370,1766757667765,500.0,0.00013273,2]
[399857371,1766757694145,-186.48525021,0.00014799,2]
[399857372,1766757694178,-184.25593588,0.00014799,2]
[399857373,1766757694214,-307.26073413,0.00015002,2]
[399857374,1766757694248,-233.40892948,0.00015206,2]
[399857375,1766757694283,-266.75306226,0.00015206,2]
[399857376,1766757694317,-416.80165978,0.00015206,2]
[399857377,1766757694350,-300.0,0.00015263,2]
[399857378,1766757694382,-500.0,0.00015264,2]
[399857379,1766757694413,-500.0,0.00015264,2]
[399857380,1766757694445,-500.0,0.00015264,2]
[399857381,1766757694477,-150.0,0.00015264,2]
[399857382,1766757694514,-1200.0,0.00015399,2]
[399857383,1766757694546,-10.07885652,0.00015401,2]
[399857384,1766757695118,-489.92114348,0.00015401,2]
[399857385,1766757695152,-500.0,0.00015401,2]
[399857386,1766757695186,-500.0,0.00015401,2]
[399857387,1766757695221,-943.42039274,0.00015401,2]
[399857388,1766757695255,-187.50273336,0.00015436,2]
[399857389,1766757695290,-727.0,0.00015442,2]
[399857390,1766757695326,-153.04055891,0.00015443,2]
[399857391,1766757695360,-306.88226396,0.00015443,2]
[399857392,1766757695393,-187.50273336,0.00015457,2]
[399857393,1766757695426,-187.50273336,0.00015478,2]
[399857394,1766757695462,-514.7769839,0.00015512,2]
[399857395,1766757695612,-4193.8505453,0.00015512,2]
[399857396,1766757695643,-608.9288961,0.00015513,2]
[399857397,1766757695684,-394.4511172,0.00015513,2]
[399857398,1766757695717,-500.0,0.00015528,2]
[399857399,1766757695748,-500.0,0.00015528,2]
[399857400,1766757695781,-309.12536627,0.00015528,2]
[399857401,1766757695812,-584.73157264,0.00015528,2]
[399857402,1766757695844,-500.0,0.00015528,2]
[399857403,1766757695876,-296.19657913,0.00015528,2]
[399857404,1766757695908,-500.0,0.00015528,2]
[399857405,1766757695941,-500.0,0.00015528,2]
[399857406,1766757695985,-2965.0,0.00015529,3]
[399857407,1766757696017,-1482.5,0.00015529,3]
[399857408,1766757696049,-363.76,0.00015529,3]
[399857409,1766757697243,-377.49,0.00015529,3]
[399857410,1766757697277,-370.63,0.00015529,3]
[399857411,1766757697309,-185.31,0.00015529,3]
[399857412,1766757697339,-555.98,0.00015529,3]
[399857413,1766757697371,-500.0,0.0001553,2]
[399857414,1766757697402,-168.3888056,0.0001553,2]
[399857415,1766757697434,-461.67526834,0.0001553,2]
[399857416,1766757697465,-151.0,0.0001553,2]
[399857417,1766757697499,-500.0,0.0001553,2]
[399857418,1766757697532,-500.0,0.0001553,2]
[399857419,1766757697564,-1000.0,0.0001553,2]
[399857420,1766757697614,-500.0,0.0001553,2]
[399857421,1766757697644,-250.0,0.0001553,2]
[399857422,1766757697675,-662.59259356,0.0001553,2]
[399857423,1766757697705,-500.0,0.0001553,2]
[399857424,1766757697736,-500.0,0.0001553,2]
[399857425,1766757697767,-250.0,0.0001553,2]
[399857426,1766757697799,-500.0,0.0001553,2]
[399857427,1766757697829,-250.0,0.0001553,2]
[399857428,1766757697860,-151.0,0.0001553,2]
[399857429,1766757697892,-500.0,0.0001553,2]
[399857430,1766757697923,-500.0,0.0001553,2]
[399857431,1766757697955,-372.82481288,0.0001553,2]
[399857432,1766757702795,-127.17518712,0.0001553,2]
[399857433,1766757702827,-500.0,0.0001553,2]
[399857434,1766757702859,-500.0,0.0001553,2]
[399857435,1766757702889,-500.0,0.0001553,2]
[399857436,1766757702919,-500.0,0.0001553,2]
[399857437,1766757702950,-500.0,0.0001553,2]
[399857438,1766757702983,-500.0,0.0001553,2]
[399857439,1766757703012,-500.0,0.0001553,2]
[399857440,1766757703041,-168.3888056,0.0001553,2]
[399857441,1766757703454,162.357,0.00015529,2]
[399857442,1766757709018,-500.0,0.00015535,2]
[399857443,1766757709051,-156.09887011,0.00015535,2]
[399857444,1766757709086,-1341.94532714,0.00015535,2]
[399857445,1766757709119,-1341.94532714,0.00015535,2]
[399857446,1766757709151,-333.42425681,0.00015535,2]
[399857447,1766757709184,-1311.23711046,0.00015535,2]
[399857448,1766757709223,-30.70821668,0.00015535,2]
[399857449,1766757709255,-1341.94532714,0.00015535,2]
[399857450,1766757709287,-1341.94532714,0.00015535,2]
[399857451,1766757709320,-1341.94532714,0.00015535,2]
[399857452,1766757709365,-544.97627666,0.00015535,2]
[399857453,1766757709594,-796.96905048,0.00015535,2]
[399857454,1766757709627,-1341.94532714,0.00015535,2]
[399857455,1766757709660,-1341.94532714,0.00015535,2]
[399857456,1766757709691,-1341.94532714,0.00015535,2]
[399857457,1766757709848,-1341.94532714,0.00015535,2]
[399857458,1766757709880,-1341.94532714,0.00015535,2]
[399857459,1766757709914,-1341.94532714,0.00015535,2]
[399857460,1766757709953,-606.39271002,0.00015535,2]
[399857461,1766757712134,-735.55261712,0.00015535,2]
[399857462,1766757712168,-1341.94532714,0.00015535,2]
[399857463,1766757712200,-1341.94532714,0.00015535,2]
[399857464,1766757712232,-1341.94532714,0.00015535,2]
[399857465,1766757714982,-1341.94532714,0.00015535,2]
[399857466,1766757715019,-1424.52657804,0.00015535,2]
[399857467,1766757715054,-1424.52657804,0.00015535,2]
[399857468,1766757715089,-193.48645552,0.00015535,2]
[399857469,1766757718036,-1231.04012252,0.00015535,2]
[399857470,1766757718071,-1424.52657804,0.00015535,2]
[399857471,1766757718105,-1424.52657804,0.00015535,2]
[399857472,1766757718138,-415.29686476,0.00015535,2]
[399857473,1766757718493,-1009.22971328,0.00015535,2]
[399857474,1766757718529,-1424.52657804,0.00015535,2]
[399857475,1766757718563,-1424.52657804,0.00015535,2]
[399857476,1766757718597,-654.59164883,0.00015535,2]
[399857477,1766757721218,-974.26096362,0.00015535,2]
[399857478,1766757721252,-1628.85261245,0.00015535,2]
[399857479,1766757721286,-1628.85261245,0.00015535,2]
[399857480,1766757721317,-349.73854589,0.00015535,2]
[399857481,1766757721349,-176.4299168,0.00015535,2]
[399857482,1766757724112,-500.0,0.00013273,2]
[399857483,1766757724145,-300.0,0.00015534,2]
[399857484,1766757724178,-500.0,0.00015538,2]
[399857485,1766757724209,-500.0,0.00015538,2]
[399857486,1766757724241,-275.24518356,0.00015538,2]
[399857488,1766757903371,500.0,0.00013273,2]
[399857489,1766757903450,500.0,0.00013273,2]
[399857490,1766757949787,577.280514,0.00013699,2]
[399857491,1766758063735,163.31604077,0.00014059,2]
[399857492,1766758066281,293.96887339,0.00014059,2]
[399857493,1766758068850,209.61963822,0.00014445,2]
[399857494,1766758071323,376.93803344,0.00014445,2]
[399857495,1766758083184,203.29,5.837e-05,3]
[399857496,1766758181530,222.1411032,7.961e-05,2]
[399857497,1766758198009,4000.0,0.00015002,2]
[399857498,1766758204420,636.0,0.00015002,2]
[399857499,1766758227000,-307.91460684,0.00015002,2]
[399857500,1766758227034,-151.0,0.00015183,2]
[399857501,1766758227069,-250.0,0.00015183,2]
[399857502,1766758227103,-168.3888056,0.00015183,2]
[399857503,1766758227138,-259.405612,0.00015183,2]
[399857504,1766758227172,-461.67526834,0.00015183,2]
[399857505,1766758227206,-151.0,0.00015183,2]
[399857506,1766758227241,-500.0,0.00015183,2]
[399857507,1766758227277,-500.0,0.00015183,2]
[399857508,1766758227313,-643.24396203,0.00015183,2]
[399857509,1766758227347,-168.3888056,0.00015183,2]
[399857510,1766758227382,-1200.0,0.00015341,2]
[399857511,1766758227417,-150.0,0.00015342,5]
[399857522,1766758231797,-429.0,0.00015342,5]
[399857524,1766758231809,-500.0,0.00015342,5]
[399857526,1766758231820,-500.0,0.00015342,5]
[399857528,1766758231829,-500.0,0.00015342,5]
[399857530,1766758231839,-500.0,0.00015342,5]
[399857532,1766758231849,-150.0,0.00015342,5]
[399857534,1766758231859,-500.0,0.00015342,5]
[399857536,1766758231869,-157.9049439,0.00015342,5]
[399857537,1766758231879,-500.0,0.00015342,5]
[399857539,1766758231888,-500.0,0.00015342,5]
[399857541,1766758231898,-500.0,0.00015342,5]
[399857543,1766758231908,-500.0,0.00015342,5]
[399857545,1766758231917,-150.0,0.00015342,5]
[399857548,1766758231926,-150.0,0.00015342,5]
[399857550,1766758231935,-150.0,0.00015342,5]
[399857553,1766758231944,-500.0,0.00015342,5]
[399857555,1766758231955,-150.0,0.00015342,5]
[399857557,1766758231965,-210.12190581,0.00015342,5]
[399857560,1766758231974,-500.0,0.00015342,5]
[399857562,1766758231987,-206.43198514,0.00015342,5]
[399857564,1766758231997,-500.0,0.00015342,5]
[399857566,1766758232006,-264.98270224,0.00015342,5]
[399857568,1766758232015,-150.0,0.00015342,5]
[399857570,1766758232024,-150.0,0.00015342,5]
[399857572,1766758232034,-7000.0,0.000154,2]
[399857573,1766758232044,-9669.31189005,0.00015435,2]
[399857575,1766758232054,-170.07897238,0.00015479,5]
[399857577,1766758232064,-429.0,0.00015479,5]
[399857578,1766758232073,-500.0,0.00015479,5]
[399857580,1766758232083,-500.0,0.00015479,5]
[399857581,1766758232093,-500.0,0.00015479,5]
[399857582,1766758232103,-500.0,0.00015479,5]
[399857583,1766758232113,-257.06661379,0.00015479,5]
[399857584,1766758232123,-500.0,0.00015479,5]
[399857585,1766758232132,-500.0,0.00015479,5]
[399857586,1766758232142,-500.0,0.00015479,5]
[399857587,1766758232151,-500.0,0.00015479,5]
[399857588,1766758232160,-524.26962583,0.00015479,5]
[399857589,1766758232170,-150.0,0.00015479,5]
[399857590,1766758232180,-150.0,0.00015479,5]
[399857591,1766758232191,-150.0,0.00015479,5]
[399857592,1766758232200,-613.77932454,0.00015479,5]
[399857593,1766758232210,-150.0,0.00015479,5]
[399857594,1766758232220,-500.0,0.00015479,5]
[399857595,1766758232229,-500.0,0.00015479,5]
[399857596,1766758232240,-164.08385481,0.00015479,5]
[399857597,1766758232250,-150.0,0.00015479,5]
[399857598,1766758232260,-376.0503679,0.000155,2]
[399857599,1766758232270,-376.0503679,0.000155,2]
[399857600,1766758232280,-841.4579163,0.0001551,2]
[399857601,1766758232290,-176.22208,0.0001551,2]
[399857602,1766758232300,-4278.4871742,0.0001551,2]
[399857603,1766758232313,-500.0,0.00015529,2]
[399857604,1766758232323,-500.0,0.00015529,2]
[399857605,1766758232334,-500.0,0.00015529,2]
[399857606,1766758232344,-500.0,0.00015529,2]
[399857607,1766758232354,-235.57097759,0.00015529,2]
[399857608,1766758232363,-356.89792152,0.00015535,2]
[399857609,1766758232372,-1002.07689718,0.00015535,2]
[399857610,1766758232382,-1002.07689718,0.00015535,2]
[399857611,1766758232391,-1002.07689718,0.00015535,2]
[399857612,1766758232401,-1002.07689718,0.00015535,2]
[399857613,1766758232411,-1002.07689718,0.00015535,2]
[399857614,1766758232420,-1002.07689718,0.00015535,2]
[399857615,1766758232429,-1002.07689718,0.00015535,2]
[399857616,1766758232440,-1002.07689718,0.00015535,2]
[399857617,1766758232449,-1002.07689718,0.00015535,2]
[399857618,1766758232459,-1002.07689718,0.00015535,2]
[399857619,1766758232469,-1002.07689718,0.00015535,2]
[399857620,1766758232479,-1002.07689718,0.00015535,2]
[399857621,1766758232489,-1002.07689718,0.00015535,2]
[399857622,1766758232499,-1002.07689718,0.00015535,2]
[399857623,1766758232509,-1002.07689718,0.00015535,2]
[399857624,1766758232520,-1811.44669876,0.00015535,2]
[399857625,1766758232530,-1811.44669876,0.00015535,2]
[399857626,1766758232540,-1811.44669876,0.00015535,2]
[399857627,1766758232550,-1811.44669876,0.00015535,2]
[399857628,1766758232560,-1811.44669876,0.00015535,2]
[399857629,1766758232571,-1811.44669876,0.00015535,2]
[399857630,1766758232580,-1811.44669876,0.00015535,2]
[399857631,1766758232590,-564.52697011,0.00015535,2]
[399857632,1766758232599,-1811.44669876,0.00015535,2]
[399857633,1766758232609,-1811.44669876,0.00015535,2]
[399857634,1766758232619,-1811.44669876,0.00015535,2]
[399857635,1766758232629,-2260.53452615,0.00015535,2]
[399857636,1766758232639,-2260.53452615,0.00015535,2]
[399857637,1766758232649,-2260.53452615,0.00015535,2]
[399857638,1766758232659,-2477.5243733,0.00015546,2]
[399857639,1766758232669,-376.0503679,0.000156,2]
[399857640,1766758232679,-376.0503679,0.000156,2]
[399857641,1766758232690,-376.0503679,0.000156,2]
[399857642,1766758232701,-153.0,0.000156,2]
[399857643,1766758232711,-1194.9799272,0.000156,2]
[399857644,1766758232722,-429.0,0.00015616,5]
[399857645,1766758232731,-500.0,0.00015616,5]
[399857646,1766758232741,-594.82285928,0.00015616,5]
[399857647,1766758232754,-500.0,0.00015616,5]
[399857648,1766758232765,-500.0,0.00015616,5]
[399857649,1766758232775,-570.60437313,0.00015616,5]
[399857650,1766758232787,-500.0,0.00015616,5]
[399857651,1766758232798,-500.0,0.00015616,5]
[399857652,1766758232808,-500.0,0.00015616,5]
[399857653,1766758232818,-150.0,0.00015616,5]
[399857654,1766758232828,-150.0,0.00015616,5]
[399857655,1766758232838,-153.86406507,0.00015616,5]
[399857656,1766758232848,-236.54734268,0.00015616,5]
[399857657,1766758232858,-500.0,0.00015616,5]
[399857658,1766758232868,-500.0,0.00015616,5]
[399857659,1766758232877,-150.0,0.00015616,5]
[399857660,1766758232887,-500.0,0.00015634,2]
[399857661,1766758232897,-500.0,0.00015634,2]
[399857662,1766758232907,-163.29711316,0.00015635,2]
[399857663,1766758232917,-344.49978302,0.00015635,2]
[399857664,1766758232927,-152.0,0.00015635,2]
[399857665,1766758232938,-163.0,0.00015635,2]
[399857666,1766758232949,-152.31585058,0.00015635,2]
[399857667,1766758232959,-500.0,0.00015638,2]
[399857668,1766758232970,-318.0,0.00015693,2]
[399857669,1766758232990,-376.0503679,0.000157,2]
[399857670,1766758233005,-151.0,0.00015731,2]
[399857671,1766758233017,-478.75725327,0.00015731,2]
[399857672,1766758233027,-174.61919141,0.00015731,2]
[399857673,1766758233038,-20265.05653863,0.00015748,2]
[399857674,1766758233049,-429.0,0.00015753,5]
[399857675,1766758233059,-500.0,0.00015753,5]
[399857676,1766758233070,-500.0,0.00015753,5]
[399857677,1766758233081,-413.92678941,0.00015753,5]
[399857678,1766758233092,-500.0,0.00015753,5]
[399857679,1766758233102,-500.0,0.00015753,5]
[399857680,1766758233113,-500.0,0.00015753,5]
[399857681,1766758233124,-173.20813569,0.00015753,5]
[399857682,1766758233134,-150.0,0.00015753,5]
[399857683,1766758233146,-500.0,0.00015753,5]
[399857684,1766758233156,-500.0,0.00015753,5]
[399857685,1766758233166,-158.18295409,0.00015753,5]
[399857686,1766758233176,-474.36,0.0001578,3]
[399857687,1766758233186,-285.0235754,0.00015783,7]
[399857688,1766758233197,-626.22193338,0.00015783,7]
[399857689,1766758233207,-1390.81587365,0.00015783,7]
[399857690,1766758233218,-551.43897593,0.00015783,7]
[399857691,1766758233228,-497.78086655,0.00015783,7]
[399857692,1766758233238,-1140.09430159,0.00015783,7]
[399857693,1766758233249,-751.1653358,0.000158,2]
[399857694,1766758233260,-376.0503679,0.000158,2]
[399857695,1766758233270,-376.0503679,0.000158,2]
[399857696,1766758233282,-376.0503679,0.000158,2]
[399857697,1766758233292,-376.0503679,0.000158,2]
[399857698,1766758233302,-376.0503679,0.000158,2]
[399857699,1766758233311,-376.0503679,0.000158,2]
[399857700,1766758233321,-750.2299358,0.000158,2]
[399857701,1766758233331,-271.14463633,0.00015845,2]
[399857702,1766758233342,-307.69602797,0.00015845,2]
[399857703,1766758233352,-474.34568298,0.00015845,2]
[399857704,1766758233363,-853.82222936,0.00015845,2]
[399857705,1766758233373,-547.01516084,0.00015845,2]
[399857706,1766758233384,-380.73892951,0.00015845,2]
[399857707,1766758233395,-853.85647762,0.00015845,2]
[399857708,1766758233406,-1517.90618553,0.00015845,2]
[399857709,1766758233416,-2369.35668647,0.00015845,2]
[399857710,1766758233427,-435.13020515,0.00015845,2]
[399857711,1766758233437,-679.2110546,0.00015845,2]
[399857712,1766758233447,-388.35058895,0.00015856,2]
[399857713,1766758233457,-699.03106012,0.00015856,2]
[399857714,1766758233467,-482.03490902,0.00015856,2]
[399857715,1766758233477,-752.4263658,0.00015856,2]
[399857716,1766758233493,-1242.72188465,0.00015856,2]
[399857717,1766758233505,-1939.81119182,0.00015856,2]
[399857718,1766758233516,-206.92417883,0.00015856,2]
[399857719,1766758233526,-372.46352189,0.00015856,2]
[399857720,1766758233538,-5000.0,0.0001588,3]
[399857721,1766758233549,-5888.0,0.00015887,2]
[399857722,1766758233560,-429.0,0.0001589,5]
[399857723,1766758233571,-500.0,0.0001589,5]
[399857724,1766758233582,-500.0,0.0001589,5]
[399857725,1766758233594,-500.0,0.0001589,5]
[399857726,1766758233603,-500.0,0.0001589,5]
[399857727,1766758233614,-461.89087781,0.0001589,5]
[399857728,1766758233624,-150.0,0.0001589,5]
[399857729,1766758233634,-500.0,0.0001589,5]
[399857730,1766758233645,-500.0,0.0001589,5]
[399857731,1766758233655,-5000.0,0.0001589,5]
[399857732,1766758233665,-475.0,0.0001591,2]
[399857733,1766758233676,-475.0,0.0001591,2]
[399857734,1766758233686,-475.0,0.0001591,2]
[399857735,1766758233696,-475.0,0.0001591,2]
[399857736,1766758233707,-475.0,0.0001591,2]
[399857737,1766758233718,-475.0,0.0001591,2]
[399857738,1766758233728,-475.0,0.0001591,2]
[399857739,1766758233739,-475.0,0.0001591,2]
[399857740,1766758233752,-475.0,0.0001591,2]
[399857741,1766758233762,-600.0,0.00015941,2]
[399857742,1766758233773,-5888.0,0.00015966,2]
[399857743,1766758233783,-5888.0,0.00015998,2]
[399857744,1766758233793,-478.72,0.00016017,3]
[399857745,1766758233805,-239.36,0.00016017,3]
[399857746,1766758233815,-718.12,0.00016017,3]
[399857747,1766758233826,-429.0,0.00016027,5]
[399857748,1766758233838,-500.0,0.00016027,5]
[399857749,1766758233848,-500.0,0.00016027,5]
[399857750,1766758233859,-500.0,0.00016027,5]
[399857751,1766758233870,-500.0,0.00016027,5]
[399857752,1766758233881,-163.34008304,0.00016027,5]
[399857753,1766758233891,-333.12245302,0.00016027,5]
[399857754,1766758233901,-500.0,0.00016027,5]
[399857755,1766758233912,-662.15737225,0.00016043,2]
[399857756,1766758233922,-957.45,0.00016089,3]
[399857757,1766758233932,-5888.0,0.00016089,2]
[399857758,1766758233942,-1914.89,0.00016099,3]
[399857759,1766758233952,-5888.0,0.00016107,2]
[399857760,1766758233962,-329.729636,0.00016108,2]
[399857761,1766758233971,-329.729636,0.00016108,2]
[399857762,1766758233982,-329.729636,0.00016108,2]
[399857763,1766758233998,-329.729636,0.00016108,2]
[399857764,1766758234008,-5888.0,0.0001615,2]
[399857765,1766758234018,-429.0,0.00016164,5]
[399857766,1766758234030,-500.0,0.00016164,5]
[399857767,1766758234041,-500.0,0.00016164,5]
[399857768,1766758234051,-500.0,0.00016164,5]
[399857769,1766758234063,-500.0,0.00016164,5]
[399857770,1766758234073,-500.0,0.00016164,5]
[399857771,1766758234083,-1000.0,0.0001617,2]
[399857772,1766758234094,-5888.0,0.00016195,2]
[399857773,1766758234104,-292.61872351,0.00016234,2]
[399857774,1766758234114,-151.0,0.00016267,2]
[399857775,1766758234124,-151.0,0.00016267,2]
[399857776,1766758234133,-279.301448,0.00016267,2]
[399857777,1766758234144,-151.0,0.00016279,2]
[399857778,1766758234155,-496.47127164,0.00016279,2]
[399857779,1766758234166,-181.08010149,0.00016279,2]
[399857780,1766758234176,-900.0,0.000163,2]
[399857781,1766758234187,-429.0,0.00016301,5]
[399857782,1766758234198,-347.05014813,0.00016301,5]
[399857783,1766758234209,-500.0,0.00016301,5]
[399857784,1766758234221,-500.0,0.00016301,5]
[399857785,1766758234232,-500.0,0.00016301,5]
[399857786,1766758234242,-500.0,0.00016301,5]
[399857787,1766758234252,-3582.78945248,0.00016381,2]
[399857788,1766758234262,-758.57157133,0.00016392,7]
[399857789,1766758234272,-278.81933069,0.00016398,2]
[399857790,1766758234285,-1041.66666667,0.00016411,2]
[399857791,1766758234295,-5888.0,0.00016429,2]
[399857792,1766758234306,-172.12539163,0.00016433,2]
[399857793,1766758234317,-429.0,0.00016438,5]
[399857794,1766758234327,-500.0,0.00016438,5]
[399857795,1766758234341,-151.43282631,0.00016438,5]
[399857796,1766758234352,-500.0,0.00016438,5]
[399857797,1766758234362,-500.0,0.00016438,5]
[399857798,1766758234373,-500.0,0.00016438,2]
[399857799,1766758234385,-500.0,0.00016438,2]
[399857800,1766758234395,-500.0,0.00016438,2]
[399857801,1766758234405,-500.0,0.00016438,2]
[399857802,1766758234416,-500.0,0.00016438,2]
[399857803,1766758234425,-151.0,0.00016438,2]
[399857804,1766758234435,-151.083549,0.00016438,2]
[399857805,1766758234444,-151.0,0.00016438,2]
[399857806,1766758234454,-151.0,0.00016438,2]
[399857807,1766758234464,-151.0,0.00016438,2]
[399857808,1766758234474,-151.0,0.00016438,2]
[399857809,1766758234483,-329.729636,0.00016461,2]
[399857810,1766758234494,-329.729636,0.00016461,2]
[399857811,1766758234504,-329.729636,0.00016461,2]
[399857812,1766758234514,-329.729636,0.00016461,2]
[399857813,1766758234524,-634.09964858,0.000165,2]
[399857814,1766758234534,-174.61919141,0.00016552,2]
[399857815,1766758234544,-151.0,0.00016552,2]
[399857816,1766758234555,-429.0,0.00016575,5]
[399857817,1766758234565,-500.0,0.00016575,5]
[399857818,1766758234577,-500.0,0.00016575,5]
[399857819,1766758234587,-500.0,0.00016575,5]
[399857820,1766758234598,-987.64,0.0001658,2]
[399857821,1766758234608,-500.0,0.00016599,2]
[399857822,1766758234617,-480.20211775,0.00016599,2]
[399857823,1766758234627,-8270.30549446,0.000166,2]
[399857824,1766758234646,-410.04481136,0.000166,2]
[399857825,1766758234659,-912.08134046,0.000166,2]
[399857826,1766758234672,-1823.63849134,0.000166,2]
[399857851,1766758237999,-966.01590328,0.000166,2]
[399857854,1766758238012,-2845.36835734,0.000166,2]
[399858045,1766758240166,-2978.07579324,0.000166,2]
[399858046,1766758240225,-3530.67262914,0.000166,2]
[399858310,1766758242887,-295.20953319,7.961e-05,2]
[399858338,1766758243170,295.20953319,0.00013692,2]
[399858572,1766758245848,-2037.7947609,0.000166,2]
[399858574,1766758245858,-3130.0,0.000166,2]
[399858576,1766758245868,-151.0,0.000166,2]